fUSD/lending_fUSD_20251225
["ID","MTS","AMOUNT","RATE_DAILY","PERIOD"]
[399730855,1766639454432,-250.0,0.00038609,30]
[399730856,1766639454443,-1500.0,0.00038609,30]
[399730857,1766639454454,-250.0,0.00038609,30]
[399730858,1766639454464,-1021.64601503,0.0003861,2]
[399730859,1766639454474,-150.0,0.0003861,30]
[399730860,1766639454484,-150.0,0.0003861,30]
[399730861,1766639454494,-150.0,0.00038623,7]
[399730862,1766639454504,-300.0,0.00038623,2]
[399730863,1766639454515,-1000.0,0.00038629,30]
[399730864,1766639454526,-500.0,0.0003863,120]
[399730865,1766639454536,-2322.26,0.0003863,120]
[399730866,1766639454546,-1209.56,0.0003863,120]
[399730867,1766639454556,-549.23,0.0003863,120]
[399730868,1766639454573,-5595.09,0.0003863,120]
[399730869,1766639454589,-835.19,0.0003863,120]
[399730870,1766639454600,-578.46,0.0003863,120]
[399730871,1766639454611,-585.55,0.0003863,5]
[399730872,1766639454622,-161.0,0.0003863,90]
[399730873,1766639454632,-1000.0,0.00038679,11]
[399730874,1766639454642,-200.0,0.00038687,20]
[399730875,1766639454652,-1000.0,0.00038687,20]
[399730876,1766639454662,-200.0,0.00038688,20]
[399730877,1766639454673,-200.0,0.00038688,20]
[399730878,1766639454682,-1000.0,0.00038689,7]
[399730879,1766639454692,-679.82,0.000387,14]
[399730880,1766639454703,-300.0,0.00038713,2]
[399730881,1766639454714,-1000.0,0.00038718,7]
[399730882,1766639454725,-150.0,0.0003872,7]
[399730883,1766639454735,-254.13060141,0.00038722,2]
[399730884,1766639454746,-300.0,0.00038758,2]
[399730885,1766639454756,-201.12732169,0.00038758,2]
[399730886,1766639454767,-300.0,0.0003878,2]
[399730887,1766639454777,-1000.0,0.00038781,7]
[399730888,1766639454787,-300.0,0.00038794,2]
[399730889,1766639454798,-1000.0,0.00038799,27]
[399730890,1766639454808,-20011.33698305,0.000388,120]
[399730891,1766639454819,-849.0,0.000388,2]
[399730892,1766639454829,-976.0,0.000388,2]
[399730893,1766639454839,-305.0,0.000388,2]
[399730894,1766639454850,-165.3,0.000388,27]
[399730895,1766639454860,-165.3,0.000388,27]
[399730896,1766639454871,-300.0,0.00038802,2]
[399730897,1766639454882,-1000.0,0.00038804,3]
[399730898,1766639454893,-1000.0,0.00038828,7]
[399730899,1766639454903,-150.0,0.00038831,7]
[399730900,1766639454914,-150.0,0.00038837,7]
[399730901,1766639454924,-150.0,0.00038849,7]
[399730902,1766639454939,-300.0,0.00038858,2]
[399730903,1766639454949,-1000.0,0.0003886,7]
[399730904,1766639454959,-300.0,0.00038861,2]
[399730905,1766639454970,-1274.48,0.00038863,30]
[399730906,1766639454981,-1274.48,0.00038863,30]
[399730907,1766639454995,-300.0,0.00038864,2]
[399730908,1766639455005,-1000.0,0.00038872,7]
[399730909,1766639455016,-300.0,0.00038874,2]
[399730910,1766639455028,-150.0,0.00038887,7]
[399730911,1766639455038,-150.0,0.00038888,7]
[399730912,1766639455048,-158.0186416,0.00038899,7]
[399730913,1766639455055,-1000.0,0.000389,7]
[399730914,1766639455064,-266.03577326,0.000389,2]
[399730915,1766639455073,-809.46060837,0.000389,2]
[399730916,1766639455085,-1212.90816088,0.000389,2]
[399730917,1766639455096,-3430.6447574,0.000389,2]
[399730918,1766639455106,-182.35143652,0.000389,2]
[399730919,1766639455117,-1243.4106652,0.000389,2]
[399730920,1766639455127,-470.44457228,0.000389,7]
[399730921,1766639455138,-170.28248417,0.000389,2]
[399730922,1766639455149,-49343.53307961,0.000389,2]
[399730923,1766639455159,-1000.0,0.00038903,5]
[399730924,1766639455170,-500.0,0.00038904,120]
[399730925,1766639455181,-2322.26,0.00038904,120]
[399730926,1766639455198,-1209.56,0.00038904,120]
[399730927,1766639455208,-549.23,0.00038904,120]
[399730928,1766639455219,-5595.09,0.00038904,120]
[399730929,1766639455231,-835.19,0.00038904,120]
[399730930,1766639455242,-578.46,0.00038904,120]
[399730931,1766639455252,-585.55,0.00038904,5]
[399730932,1766639455263,-1000.0,0.00038951,7]
[399730933,1766639455277,-310.0,0.00038959,120]
[399730934,1766639455292,-1000.0,0.00038966,7]
[399730935,1766639455312,-700.0,0.0003897,2]
[399730936,1766639455328,-700.0,0.0003897,2]
[399730937,1766639455343,-700.0,0.0003897,2]
[399730938,1766639455356,-700.0,0.0003897,2]
[399730939,1766639455371,-700.0,0.0003897,2]
[399730940,1766639455384,-908.68741303,0.0003897,2]
[399730941,1766639455401,-500.0,0.0003897,2]
[399730942,1766639455413,-500.0,0.0003897,2]
[399730943,1766639455427,-500.0,0.0003897,2]
[399730944,1766639455442,-500.0,0.0003897,2]
[399730945,1766639455457,-500.0,0.0003897,2]
[399730946,1766639455470,-500.0,0.0003897,2]
[399730947,1766639455484,-800.78551976,0.0003897,2]
[399730948,1766639455497,-150.0,0.00038977,7]
[399730949,1766639455510,-1000.0,0.00038982,7]
[399730950,1766639455523,-1000.0,0.00038983,30]
[399730951,1766639455537,-1256.0,0.00038984,120]
[399730952,1766639455551,-1256.0,0.00038984,120]
[399730953,1766639455564,-1256.0,0.00038984,120]
[399730954,1766639455578,-152.0,0.00038984,120]
[399730955,1766639455598,-152.0,0.00038984,120]
[399730956,1766639455611,-1256.0,0.00038984,120]
[399730957,1766639455623,-152.0,0.00038984,120]
[399730958,1766639455634,-152.0,0.00038984,120]
[399730959,1766639455644,-1256.0,0.00038984,120]
[399730960,1766639455660,-152.0,0.00038984,120]
[399730961,1766639455673,-152.0,0.00038984,120]
[399730962,1766639455685,-837.0,0.00038984,120]
[399730963,1766639455697,-152.0,0.00038984,120]
[399730964,1766639455710,-1256.0,0.00038984,120]
[399730965,1766639455722,-152.0,0.00038984,120]
[399730966,1766639455735,-152.0,0.00038984,120]
[399730967,1766639455748,-835.0,0.00038984,120]
[399730968,1766639455760,-1256.0,0.00038984,120]
[399730969,1766639455773,-152.0,0.00038984,120]
[399730970,1766639455785,-1256.0,0.00038984,120]
[399730971,1766639455797,-152.0,0.00038984,120]
[399730972,1766639455810,-152.0,0.00038984,120]
[399730973,1766639455823,-152.0,0.00038984,120]
[399730974,1766639455837,-1256.0,0.00038984,120]
[399730975,1766639455849,-152.0,0.00038984,120]
[399730976,1766639455861,-152.0,0.00038984,120]
[399730977,1766639455874,-1256.0,0.00038984,120]
[399730978,1766639455885,-152.0,0.00038984,120]
[399730979,1766639455898,-152.0,0.00038984,120]
[399730980,1766639455912,-1256.0,0.00038984,120]
[399730981,1766639455926,-152.0,0.00038984,120]
[399730982,1766639455939,-152.0,0.00038984,120]
[399730983,1766639455953,-1256.0,0.00038984,120]
[399730984,1766639455966,-152.0,0.00038984,120]
[399730985,1766639455980,-152.0,0.00038984,120]
[399730986,1766639455994,-1256.0,0.00038984,120]
[399730987,1766639456007,-152.0,0.00038984,120]
[399730988,1766639456022,-152.0,0.00038984,120]
[399730989,1766639456034,-152.0,0.00038984,120]
[399730990,1766639456048,-1256.0,0.00038984,120]
[399730991,1766639456059,-152.0,0.00038984,120]
[399730992,1766639456071,-152.0,0.00038984,120]
[399730993,1766639456084,-1256.0,0.00038984,120]
[399730994,1766639456096,-1256.0,0.00038984,120]
[399730995,1766639456118,-152.0,0.00038984,120]
[399730996,1766639456134,-152.0,0.00038984,120]
[399730997,1766639456149,-1256.0,0.00038984,120]
[399730998,1766639456162,-152.0,0.00038984,120]
[399730999,1766639456176,-152.0,0.00038984,120]
[399731000,1766639456193,-152.0,0.00038984,120]
[399731001,1766639456208,-1256.0,0.00038984,120]
[399731002,1766639456220,-152.0,0.00038984,120]
[399731003,1766639456232,-152.0,0.00038984,120]
[399731004,1766639456242,-1256.0,0.00038984,120]
[399731005,1766639456255,-152.0,0.00038984,120]
[399731006,1766639456269,-152.0,0.00038984,120]
[399731007,1766639456282,-1256.0,0.00038984,120]
[399731008,1766639456294,-152.0,0.00038984,120]
[399731009,1766639456306,-152.0,0.00038984,120]
[399731010,1766639456320,-1256.0,0.00038984,120]
[399731011,1766639456334,-152.0,0.00038984,120]
[399731012,1766639456348,-152.0,0.00038984,120]
[399731013,1766639456359,-1256.0,0.00038984,120]
[399731014,1766639456370,-152.0,0.00038984,120]
[399731015,1766639456380,-152.0,0.00038984,120]
[399731016,1766639456391,-1256.0,0.00038984,120]
[399731017,1766639456402,-152.0,0.00038984,120]
[399731018,1766639456414,-152.0,0.00038984,120]
[399731019,1766639456425,-1256.0,0.00038984,120]
[399731020,1766639456437,-152.0,0.00038984,120]
[399731021,1766639456450,-152.0,0.00038984,120]
[399731022,1766639456463,-1256.0,0.00038984,120]
[399731023,1766639456480,-152.0,0.00038984,120]
[399731024,1766639456494,-152.0,0.00038984,120]
[399731025,1766639456507,-152.0,0.00038984,120]
[399731026,1766639456519,-152.0,0.00038984,120]
[399731027,1766639456530,-1256.0,0.00038984,120]
[399731028,1766639456542,-152.0,0.00038984,120]
[399731029,1766639456554,-152.0,0.00038984,120]
[399731030,1766639456565,-1256.0,0.00038984,120]
[399731031,1766639456577,-1256.0,0.00038984,120]
[399731032,1766639456591,-152.0,0.00038984,120]
[399731033,1766639456603,-152.0,0.00038984,120]
[399731034,1766639456622,-152.0,0.00038984,120]
[399731035,1766639456634,-1256.0,0.00038984,120]
[399731036,1766639456646,-152.0,0.00038984,120]
[399731037,1766639456659,-152.0,0.00038984,120]
[399731038,1766639456675,-1256.0,0.00038984,120]
[399731039,1766639456698,-152.0,0.00038984,120]
[399731040,1766639456712,-152.0,0.00038984,120]
[399731041,1766639456725,-152.0,0.00038984,120]
[399731042,1766639456737,-1256.0,0.00038984,120]
[399731043,1766639456749,-152.0,0.00038984,120]
[399731044,1766639456763,-1256.0,0.00038984,120]
[399731045,1766639456776,-152.0,0.00038984,120]
[399731046,1766639456787,-1256.0,0.00038984,120]
[399731047,1766639456801,-152.0,0.00038984,120]
[399731048,1766639456814,-152.0,0.00038984,120]
[399731049,1766639456826,-152.0,0.00038984,120]
[399731050,1766639456839,-1256.0,0.00038984,120]
[399731051,1766639456853,-152.0,0.00038984,120]
[399731052,1766639456866,-1129.52601387,0.00038984,120]
[399731053,1766639456879,-152.0,0.00038984,120]
[399731054,1766639456892,-152.0,0.00038984,120]
[399731055,1766639456907,-152.0,0.00038984,120]
[399731056,1766639456919,-152.0,0.00038984,120]
[399731057,1766639456933,-152.0,0.00038984,120]
[399731058,1766639456945,-206.21647338,0.00038984,120]
[399731059,1766639456958,-153.0,0.00038984,120]
[399731060,1766639456971,-153.0,0.00038984,120]
[399731061,1766639456984,-153.0,0.00038984,120]
[399731062,1766639456997,-1146.02312697,0.00038985,7]
[399731063,1766639457009,-1000.0,0.00038986,30]
[399731064,1766639457021,-300.251254,0.00038987,93]
[399731065,1766639457034,-500.0,0.00038987,54]
[399731066,1766639457046,-500.0,0.00038987,54]
[399731067,1766639457059,-1500.0,0.00038987,54]
[399731068,1766639457071,-514.84070869,0.00038987,54]
[399731069,1766639457084,-500.0,0.00038987,54]
[399731070,1766639457096,-543.0,0.00038987,54]
[399731071,1766639457108,-500.0,0.00038987,54]
[399731072,1766639457120,-500.0,0.00038987,54]
[399731073,1766639457132,-151.0,0.00038987,54]
[399731074,1766639457144,-250.0,0.00038987,54]
[399731075,1766639457155,-250.0,0.00038987,54]
[399731076,1766639457168,-1500.0,0.00038987,54]
[399731077,1766639457180,-250.0,0.00038987,54]
[399731078,1766639457194,-1000.0,0.00038988,30]
[399731079,1766639457205,-300.0,0.0003899,2]
[399731080,1766639457218,-1000.0,0.00038996,14]
[399731081,1766639457232,-500.0,0.00038997,45]
[399731082,1766639457244,-500.0,0.00038997,45]
[399731083,1766639457256,-1500.0,0.00038997,45]
[399731084,1766639457269,-496.47127164,0.00038997,45]
[399731085,1766639457281,-500.0,0.00038997,45]
[399731086,1766639457294,-543.0,0.00038997,45]
[399731087,1766639457305,-500.0,0.00038997,45]
[399731088,1766639457317,-500.0,0.00038997,45]
[399731089,1766639457330,-151.0,0.00038997,45]
[399731090,1766639457342,-250.0,0.00038997,45]
[399731091,1766639457354,-250.0,0.00038997,45]
[399731092,1766639457366,-1500.0,0.00038997,45]
[399731093,1766639457378,-250.0,0.00038997,45]
[399731094,1766639457390,-1000.0,0.00038997,30]
[399731095,1766639457402,-151.0,0.00038997,14]
[399731096,1766639457414,-225.31429834,0.00038998,30]
[399731097,1766639457425,-500.0,0.00038998,30]
[399731098,1766639457437,-500.0,0.00038998,30]
[399731099,1766639457448,-500.0,0.00038998,30]
[399731100,1766639457460,-1500.0,0.00038998,30]
[399731101,1766639457472,-445.202766,0.00038998,30]
[399731102,1766639457484,-500.0,0.00038998,31]
[399731103,1766639457495,-500.0,0.00038998,31]
[399731104,1766639457507,-500.0,0.00038998,31]
[399731105,1766639457519,-1500.0,0.00038998,31]
[399731106,1766639457530,-543.0,0.00038998,30]
[399731107,1766639457541,-461.67526834,0.00038998,31]
[399731108,1766639457553,-500.0,0.00038998,45]
[399731109,1766639457564,-500.0,0.00038998,45]
[399731110,1766639457576,-543.0,0.00038998,31]
[399731111,1766639457588,-1500.0,0.00038998,45]
[399731112,1766639457599,-478.75725327,0.00038998,45]
[399731113,1766639457611,-500.0,0.00038998,45]
[399731114,1766639457623,-543.0,0.00038998,45]
[399731115,1766639457635,-500.0,0.00038998,30]
[399731116,1766639457647,-500.0,0.00038998,30]
[399731117,1766639457659,-500.0,0.00038998,31]
[399731118,1766639457670,-500.0,0.00038998,31]
[399731119,1766639457681,-500.0,0.00038998,45]
[399731120,1766639457693,-500.0,0.00038998,45]
[399731121,1766639457707,-151.0,0.00038998,30]
[399731122,1766639457721,-151.0,0.00038998,31]
[399731123,1766639457734,-151.0,0.00038998,30]
[399731124,1766639457746,-151.0,0.00038998,45]
[399731125,1766639457759,-151.0,0.00038998,31]
[399731126,1766639457772,-217.57602405,0.00038998,45]
[399731127,1766639457783,-250.0,0.00038998,30]
[399731128,1766639457796,-250.0,0.00038998,31]
[399731129,1766639457808,-155.81290792,0.00038998,30]
[399731130,1766639457820,-250.0,0.00038998,45]
[399731131,1766639457837,-537.6845,0.00038998,30]
[399731132,1766639457862,-557.5788265,0.00038998,31]
[399731133,1766639457879,-250.0,0.00038998,30]
[399731134,1766639457891,-250.0,0.00038998,31]
[399731135,1766639457901,-250.0,0.00038998,45]
[399731136,1766639457914,-1500.0,0.00038998,30]
[399731137,1766639457925,-1500.0,0.00038998,31]
[399731138,1766639457936,-559.19188,0.00038998,30]
[399731139,1766639457948,-1500.0,0.00038998,45]
[399731140,1766639457958,-579.88197956,0.00038998,31]
[399731141,1766639457970,-740.54743211,0.00038998,45]
[399731142,1766639457983,-250.0,0.00038998,30]
[399731143,1766639457995,-250.0,0.00038998,31]
[399731144,1766639458006,-250.0,0.00038998,45]
[399731145,1766639458018,-1000.0,0.00038998,30]
[399731146,1766639458030,-1000.0,0.00038998,30]
[399731147,1766639458042,-503.17927055,0.00038999,30]
[399731148,1766639458053,-150.0,0.00038999,2]
[399731149,1766639458065,-169.34762389,0.00038999,30]
[399731150,1766639458077,-169.34762389,0.00038999,30]
[399731151,1766639458089,-169.34762389,0.00038999,30]
[399731152,1766639458101,-169.34762389,0.00038999,30]
[399731153,1766639458113,-169.34762389,0.00038999,30]
[399731154,1766639458127,-169.34762389,0.00038999,30]
[399731155,1766639458139,-169.34762389,0.00038999,30]
[399731156,1766639458151,-169.34762389,0.00038999,30]
[399731157,1766639458163,-169.34762389,0.00038999,30]
[399731158,1766639458174,-169.34762389,0.00038999,30]
[399731159,1766639458190,-500.0,0.00038999,30]
[399731160,1766639458202,-300.0,0.00038999,31]
[399731161,1766639458214,-151.0,0.00038999,31]
[399731162,1766639458226,-500.0,0.00038999,31]
[399731163,1766639458238,-500.0,0.00038999,31]
[399731164,1766639458250,-500.0,0.00038999,31]
[399731165,1766639458268,-1500.0,0.00038999,31]
[399731166,1766639458281,-414.0,0.00038999,31]
[399731167,1766639458292,-311.1,0.00038999,39]
[399731168,1766639458304,-156.587,0.00038999,39]
[399731169,1766639458315,-500.0,0.00038999,39]
[399731170,1766639458327,-1500.0,0.00038999,39]
[399731171,1766639458339,-500.0,0.00038999,39]
[399731172,1766639458350,-500.0,0.00038999,39]
[399731173,1766639458362,-543.0,0.00038999,31]
[399731174,1766639458374,-429.318,0.00038999,39]
[399731175,1766639458386,-543.0,0.00038999,39]
[399731176,1766639458397,-500.0,0.00038999,31]
[399731177,1766639458410,-500.0,0.00038999,31]
[399731178,1766639458422,-500.0,0.00038999,39]
[399731179,1766639458434,-500.0,0.00038999,39]
[399731180,1766639458446,-200.0,0.00038999,31]
[399731181,1766639458458,-151.0,0.00038999,31]
[399731182,1766639458470,-151.0,0.00038999,39]
[399731183,1766639458483,-151.0,0.00038999,31]
[399731184,1766639458495,-151.0,0.00038999,39]
[399731185,1766639458507,-250.0,0.00038999,31]
[399731186,1766639458519,-153.04435224,0.00038999,31]
[399731187,1766639458532,-250.0,0.00038999,39]
[399731188,1766639458543,-151.0,0.00038999,31]
[399731189,1766639458555,-151.0,0.00038999,39]
[399731190,1766639458565,-1500.0,0.00038999,31]
[399731191,1766639458576,-151.0,0.00038999,31]
[399731192,1766639458587,-151.0,0.00038999,39]
[399731193,1766639458598,-500.0,0.00038999,31]
[399731194,1766639458610,-518.5,0.00038999,39]
[399731195,1766639458622,-250.0,0.00038999,31]
[399731196,1766639458634,-250.0,0.00038999,39]
[399731197,1766639458646,-300.0,0.00038999,31]
[399731198,1766639458658,-311.1,0.00038999,39]
[399731199,1766639458669,-1500.0,0.00038999,31]
[399731200,1766639458681,-520.0,0.00038999,31]
[399731201,1766639458693,-1500.0,0.00038999,39]
[399731202,1766639458704,-539.24,0.00038999,39]
[399731203,1766639458716,-250.0,0.00038999,31]
[399731204,1766639458726,-250.0,0.00038999,39]
[399731205,1766639458738,-300.0,0.00038999,10]
[399731206,1766639458752,-1000.0,0.00038999,2]
[399731207,1766639458765,-1000.0,0.00038999,30]
[399731208,1766639458776,-1000.0,0.00038999,29]
[399731209,1766639458787,-1000.0,0.00038999,19]
[399731210,1766639458799,-300.0,0.00038999,10]
[399731211,1766639458810,-300.0,0.00038999,10]
[399731212,1766639458821,-300.0,0.00038999,10]
[399731213,1766639458833,-300.0,0.00038999,10]
[399731214,1766639458844,-300.0,0.00038999,10]
[399731215,1766639458855,-300.0,0.00038999,10]
[399731216,1766639458867,-300.0,0.00038999,10]
[399731217,1766639458878,-300.0,0.00038999,10]
[399731218,1766639458889,-666.0,0.00038999,30]
[399731219,1766639458900,-666.0,0.00038999,30]
[399731220,1766639458911,-675.6926152,0.00038999,30]
[399731221,1766639458923,-1075.08409877,0.00039,31]
[399731222,1766639458935,-4709011.69639477,0.00039,2]
[399731223,1766639459190,-238102.69098972,0.00039,2]
[399731224,1766639459204,-517.23992045,0.00039,2]
[399731225,1766639459219,-1317.435,0.00039,2]
[399731226,1766639459722,-857.92,0.00033972,11]
[399731227,1766639459753,-614.73,0.00039,2]
[399731228,1766639459780,-1521.21813799,0.00039,2]
[399731229,1766639459792,-617.05038201,0.00039,2]
[399731230,1766639460071,-208.0,0.00014796,2]
[399731231,1766639460081,-292.0,0.00014825,2]
[399731232,1766639460098,-346.0,0.00014825,2]
[399731233,1766639460108,-500.0,0.00032877,2]
[399731234,1766639460118,-500.0,0.00032877,2]
[399731235,1766639460127,-857.92,0.00034246,11]
[399731236,1766639460136,-857.92,0.0003452,11]
[399731237,1766639460146,-857.92,0.00034794,11]
[399731238,1766639460155,-857.92,0.00035068,11]
[399731239,1766639460165,-6163.24872877,0.0003514,2]
[399731240,1766639460176,-370.75127123,0.0003514,2]
[399731241,1766639460188,-410.7268172,0.00035342,11]
[399731242,1766639460203,-500.0,0.00022799,2]
[399731243,1766639460213,-121.329991,0.00035342,11]
[399731244,1766639460224,-325.8631918,0.00035342,11]
[399731245,1766639460235,-416.06796878,0.00035616,11]
[399731246,1766639460257,-441.85203122,0.00035616,11]
[399731247,1766639460268,-857.92,0.0003589,11]
[399731248,1766639460278,-857.92,0.00036164,11]
[399731249,1766639460287,-857.92,0.00036438,11]
[399731250,1766639460297,-857.92,0.00036712,11]
[399731251,1766639460306,-857.92,0.00036986,11]
[399731252,1766639460315,-857.92,0.0003726,11]
[399731253,1766639460325,-6534.0,0.0003814,2]
[399731254,1766639460334,-1220.37,0.00038192,2]
[399731255,1766639460343,-22097.34589201,0.00039,2]
[399731256,1766639460355,-7894.39866846,0.00039,2]
[399731257,1766639460366,-4963.42952712,0.00039,2]
[399731258,1766639460589,-323.12,0.00014382,2]
[399731259,1766639460600,-2376.88,0.00014917,2]
[399731260,1766639460612,-207.13165424,0.00014917,2]
[399731261,1766639460621,-500.0,0.00032877,2]
[399731262,1766639460631,-500.0,0.00032877,2]
[399731263,1766639460641,-500.0,0.00032877,2]
[399731264,1766639460652,-327.8095602,0.00032877,2]
[399731265,1766639460662,-857.92,0.00037534,11]
[399731266,1766639460671,-659.62,0.00037671,2]
[399731267,1766639460681,-857.92,0.00037808,11]
[399731268,1766639460691,-857.92,0.00038082,11]
[399731269,1766639460701,-150.0,0.00038192,2]
[399731270,1766639460711,-150.0,0.00038192,2]
[399731271,1766639460721,-857.92,0.00038356,120]
[399731272,1766639460731,-857.92,0.0003863,120]
[399731273,1766639460742,-857.92,0.00038904,120]
[399731274,1766639460752,-715401.91272892,0.00039,2]
[399731275,1766639460764,-12127.1228994,0.00039,2]
[399731276,1766639460936,-151.0,0.00019203,2]
[399731277,1766639460946,-506.5104487,0.00039,2]
[399731278,1766639657547,-9320.6638787,0.00011914,2]
[399731279,1766639657563,-10000.01,0.00011914,2]
[399731280,1766639657579,-10000.01,0.00011914,2]
[399731281,1766639657595,-10000.01,0.00011914,2]
[399731282,1766639657627,-10000.01,0.00011914,2]
[399731283,1766639657686,-10000.01,0.00011914,2]
[399731284,1766639657790,-10000.01,0.00011914,2]
[399731285,1766639659758,-10000.01,0.00011914,2]
[399731286,1766639659897,-10000.01,0.00011914,2]
[399731287,1766639662992,-10000.01,0.00011914,2]
[399731288,1766639663199,-10000.01,0.00011914,2]
[399731289,1766639663330,-10000.01,0.00011914,2]
[399731290,1766639663438,-10000.01,0.00011914,2]
[399731291,1766639663525,-10000.01,0.00011914,2]
[399731292,1766639663633,-10000.01,0.00011914,2]
[399731293,1766639665928,-10000.01,0.00011914,2]
[399731294,1766639668930,-10000.01,0.00011914,2]
[399731295,1766639669037,-10000.01,0.00011914,2]
[399731296,1766639669168,-10000.01,0.00011914,2]
[399731297,1766639669285,-10000.01,0.00011914,2]
[399731298,1766639669544,-10000.01,0.00011914,2]
[399731299,1766639669650,-10000.01,0.00011914,2]
[399731300,1766639677966,-10000.01,0.00011914,2]
[399731301,1766639678076,-10000.01,0.00011914,2]
[399731302,1766639681078,-10000.01,0.00011914,2]
[399731303,1766639856619,-10000.01,0.00011814,2]
[399731304,1766639856893,-1.85654681,0.00011814,2]
[399731305,1766639857040,-226.32334158,0.00011913,2]
[399731306,1766639857072,-159.2718264,0.00011913,2]
[399731307,1766639857103,-500.0,0.00011913,2]
[399731308,1766639857133,-637.62409913,0.00011913,2]
[399731309,1766639857162,-503.42768977,0.00011913,2]
[399731310,1766639857190,-472.27290645,0.00011913,2]
[399731311,1766639857219,-500.0,0.00011913,2]
[399731312,1766639857252,-500.0,0.00011913,2]
[399731313,1766639857286,-500.0,0.00011913,2]
[399731314,1766639857315,-500.0,0.00011913,2]
[399731315,1766639857343,-422.0471512,0.00011913,2]
[399731316,1766639857411,-154.36287732,0.00011913,2]
[399731317,1766639857450,-644.20713123,0.00011913,2]
[399731318,1766639857481,-500.0,0.00011913,2]
[399731319,1766639857511,-257.15349844,0.00011913,2]
[399731320,1766639857545,-500.0,0.00011913,2]
[399731321,1766639857573,-250.0,0.00011913,2]
[399731322,1766639857601,-300.0,0.00011913,2]
[399731323,1766639857629,-283.42076782,0.00011913,2]
[399731324,1766639858032,-154.36287732,0.00011914,2]
[399731325,1766639858048,-4221.72145038,0.00011914,2]
[399731326,1766639858063,-10000.01,0.00011914,2]
[399731327,1766639858085,-10000.01,0.00011914,2]
[399731328,1766639858100,-10000.01,0.00011914,2]
[399731329,1766639868671,-10000.01,0.00011914,2]
[399731330,1766639868818,-10000.01,0.00011914,2]
[399731331,1766639868939,-10000.01,0.00011914,2]
[399731332,1766639869062,-10000.01,0.00011914,2]
[399731333,1766639869206,-10000.01,0.00011914,2]
[399731334,1766639869492,-10000.01,0.00011914,2]
[399731335,1766640288891,-1180.0,0.00011674,2]
[399731336,1766640288917,-300.0,0.00011674,2]
[399731337,1766640288941,-300.0,0.00011674,2]
[399731338,1766640288964,-250.0,0.00011675,2]
[399731339,1766640288988,-7393.541,0.00011675,2]
[399731340,1766640289011,-552.548,0.00011675,2]
[399731341,1766640289034,-300.0,0.0001173,2]
[399731342,1766640289056,-339.21760029,0.00011812,2]
[399731343,1766640289081,-150.0,0.00011812,2]
[399731344,1766640289104,-500.0,0.00011813,2]
[399731345,1766640289128,-500.0,0.00011813,2]
[399731346,1766640289153,-501.31859887,0.00011813,2]
[399731347,1766640289178,-500.0,0.00011813,2]
[399731348,1766640289202,-563.34642608,0.00011813,2]
[399731349,1766640289231,-500.0,0.00011813,2]
[399731350,1766640289257,-417.33749278,0.00011813,2]
[399731351,1766640289284,-436.27542279,0.00011813,2]
[399731352,1766640289313,-500.0,0.00011813,2]
[399731353,1766640289341,-500.0,0.00011813,2]
[399731354,1766640289365,-500.0,0.00011813,2]